[Event "Moscow-ch Men 2020"]
[Site "Moscow"]
[Date "2020.09.15"]
[Round "2.5"]
[White "Rostovtsev, Dmitry"]
[Black "Usov, Alexander"]
[Result "1-0"]
[ECO "B12"]
[WhiteElo "1737"]
[BlackElo "1606"]
[Annotator "NA RC"]
[PlyCount "97"]
[EventDate "2020.09.15"]
[EventType "swiss"]
[EventCountry "RUS"]
[SourceTitle "playchess.com"]
[Source "ChessBase"]
[SourceQuality "1"]
[TimeControl "5400+30"]

1. e4 {[%emt 0:00:21]} c6 {[%emt 0:01:26]} 2. d4 {[%emt 0:01:35]} d5 {[%emt 0:00:02]} 3. e5 {[%emt 0:00:08]} c5 {[%emt 0:00:04]} 4. dxc5 {[%emt 0:00:02]} Nc6 {[%emt 0:00:07]} 5. Nf3 {[%emt 0:00:21]} Bg4 {[%emt 0:00:06]} 6. c3 {[%emt 0:01:05]} e6 {[%emt 0:01:43]} 7. Be3 {[%emt 0:00:12]} Nge7 {[%emt 0:01:09]} 8. Nbd2 {[%emt 0:00:44]} Nf5 {[%emt 0:05:49]} 9. Bd4 {[%emt 0:01:41]} f6 {[%emt 0:03:05]} 10. Qa4 {[%emt 0:03:43]} Kf7 {[%emt 0:01:41]} 11. Bb5 {[%emt 0:02:10]} Qc7 {[%emt 0:03:35]} 12. Bxc6 {[%emt 0:01:02]} bxc6 {[%emt 0:02:46]} 13. h3 {[%emt 0:02:24]} Bxf3 {[%emt 0:01:00]} 14. Nxf3 {[%emt 0:00:16]} Be7 {[%emt 0:02:36]} 15. O-O {[%emt 0:03:56]} h5 {[%emt 0:00:34]} 16. Rfe1 {[%emt 0:01:18]} h4 {[%emt 0:01:33]} 17. Re2 {[%emt 0:00:58]} Nxd4 {[%emt 0:01:05]} 18. Nxd4 {[%emt 0:01:05]} f5 {[%emt 0:00:59]} 19. Qxc6 {[%emt 0:00:13]} Qxc6 {[%emt 0:00:08]} 20. Nxc6 {[%emt 0:00:04]} Bxc5 {[%emt 0:00:14]} 21. Rd1 {[%emt 0:04:54]} Rac8 {[%emt 0:00:55]} 22. Nd4 {[%emt 0:01:22]} g5 {[%emt 0:01:12]} 23. Kh2 {[%emt 0:12:09]} a5 {[%emt 0:02:36]} 24. a4 {[%emt 0:01:06]} Ba7 {[%emt 0:02:28]} 25. Nb5 {[%emt 0:03:45]} Bb8 {[%emt 0:00:17]} 26. b4 {[%emt 0:02:57]} Rc4 {[%emt 0:01:14]} 27. Rd4 {[%emt 0:00:31]} Rhc8 {[%emt 0:03:44]} 28. bxa5 {[%emt 0:04:26]} R8c6 {[%emt 0:01:15]} 29. g3 {[%emt 0:03:20]} hxg3+ {[%emt 0:00:47]} 30. Kxg3 {[%emt 0:01:06]} Ra6 {[%emt 0:15:50]} 31. Rxc4 {[%emt 0:02:07]} dxc4 {[%emt 0:00:27]} 32. f4 {[%emt 0:02:06]} gxf4+ {[%emt 0:15:15]} 33. Kxf4 {[%emt 0:00:10]} Rxa5 {[%emt 0:00:07]} 34. Rd2 {[%emt 0:02:04]} Ke7 {[%emt 0:04:23]} 35. Ra2 {[%emt 0:00:08]} Kf7 {[%emt 0:04:19]} 36. h4 {[%emt 0:00:28]} Ba7 {[%emt 0:05:54]} 37. Nxa7 {[%emt 0:03:03]} Rxa7 {[%emt 0:00:02]} 38. a5 {[%emt 0:02:20]} Ra6 {[%emt 0:00:07]} 39. Ke3 {[%emt 0:01:28]} Kg6 {[%emt 0:01:26]} 40. Kd4 {[%emt 0:00:36]} Kh5 {[%emt 0:01:57]} 41. Kxc4 {[%emt 0:00:14]} Kxh4 {[%emt 0:01:35]} 42. Kb5 {[%emt 0:00:12]} Ra8 {[%emt 0:00:11]} 43. a6 {[%emt 0:00:13]} Kg3 {[%emt 0:00:52]} 44. Kc6 {[%emt 0:01:24]} Kf4 {[%emt 0:02:44]} 45. Ra5 {[%emt 0:02:47]} Ke3 {[%emt 0:03:01]} 46. a7 {[%emt 0:00:31]} f4 {[%emt 0:01:35]} 47. Kb7 {[%emt 0:34:45]} Rd8 {[%emt 0:00:23]} 48. a8=Q {[%emt 0:00:00]} Rxa8 {[%emt 0:00:03]} 49. Rxa8 {[%emt 0:00:00]} 1-0

[Event "Moscow-ch Men 2020"]
[Site "Moscow"]
[Date "2020.09.15"]
[Round "3.5"]
[White "Fedosov, Alexander"]
[Black "Bukreev, Stanislav"]
[Result "0-1"]
[ECO "A77"]
[WhiteElo "1324"]
[BlackElo "1468"]
[Annotator "NA RC"]
[PlyCount "56"]
[EventDate "2020.09.15"]
[EventType "swiss"]
[EventCountry "RUS"]
[SourceTitle "playchess.com"]
[Source "ChessBase"]
[SourceQuality "1"]
[TimeControl "5400+30"]

1. d4 {[%emt 0:01:50]} Nf6 {[%emt 0:13:07]} 2. Nf3 {[%emt 0:00:14]} c5 {[%emt 0:00:09]} 3. d5 {[%emt 0:00:22]} e6 {[%emt 0:00:19]} 4. c4 {[%emt 0:00:30]} exd5 {[%emt 0:00:21]} 5. cxd5 {[%emt 0:00:06]} d6 {[%emt 0:00:03]} 6. Nc3 {[%emt 0:02:16]} g6 {[%emt 0:00:10]} 7. e4 {[%emt 0:02:01]} Bg7 {[%emt 0:00:40]} 8. Be2 {[%emt 0:01:53]} O-O {[%emt 0:00:12]} 9. O-O {[%emt 0:00:12]} Re8 {[%emt 0:00:19]} 10. Nd2 {[%emt 0:00:55]} a6 {[%emt 0:01:03]} 11. a4 {[%emt 0:00:06]} b6 {[%emt 0:01:18]} 12. Qc2 {[%emt 0:01:24]} Ra7 {[%emt 0:00:44]} 13. Nc4 {[%emt 0:02:09]} Rae7 {[%emt 0:00:34]} 14. f3 {[%emt 0:00:39]} Bb7 {[%emt 0:00:16]} 15. Ra3 {[%emt 0:01:03]} Nxd5 {[%emt 0:08:33]} 16. exd5 {[%emt 0:04:45]} Bxc3 {[%emt 0:03:08]} 17. Qxc3 {[%emt 0:00:15]} Rxe2 {[%emt 0:00:05]} 18. Ne3 {[%emt 0:06:17]} Qh4 {[%emt 0:02:52]} 19. Ng4 {[%emt 0:04:15]} Nd7 {[%emt 0:03:06]} 20. Nh6+ {[%emt 0:11:02]} Kf8 {[%emt 0:00:24]} 21. Qh8+ {[%emt 0:00:17]} Ke7 {[%emt 0:00:04]} 22. Qxh7 {[%emt 0:00:22]} Qd4+ {[%emt 0:01:07]} 23. Kh1 {[%emt 0:00:41]} Kd8 {[%emt 0:02:08]} 24. Nxf7+ {[%emt 0:02:40]} Kc7 {[%emt 0:00:34]} 25. Bg5 {[%emt 0:03:43]} Qf2 {[%emt 0:00:41]} 26. Rg1 {[%emt 0:03:13]} Re1 {[%emt 0:00:03]} 27. Bd8+ {[%emt 0:02:35]} Kb8 {[%emt 0:00:45]} 28. Bc7+ {[%emt 0:00:47]} Kxc7 {[%emt 1:01:15]} 0-1

[Event "Moscow-ch Men 2020"]
[Site "Moscow"]
[Date "2020.09.17"]
[Round "5.1"]
[White "Maslovskiy, Vladimir"]
[Black "Antipov, Mikhail Al."]
[Result "1/2-1/2"]
[ECO "C54"]
[WhiteElo "1767"]
[BlackElo "2584"]
[Annotator "ChessBase"]
[PlyCount "74"]
[EventDate "2020.09.15"]
[EventType "swiss"]
[EventCountry "RUS"]
[TimeControl "5400+30"]

1. e4 {[%emt 0:00:00]} e5 {[%emt 0:00:00]} 2. Nf3 {[%emt 0:00:00]} Nc6 {[%emt 0:00:00]} 3. d4 {[%emt 0:00:00]} exd4 {[%emt 0:00:00]} 4. Bc4 {[%emt 0:00:00]} Bc5 {[%emt 0:02:36]} 5. c3 {[%emt 0:00:00]} Nf6 {[%emt 0:00:14]} 6. cxd4 {[%emt 0:00:00]} Bb4+ {[%emt 0:00:06]} 7. Bd2 {[%emt 0:00:04]} Nxe4 {[%emt 0:05:15]} 8. Bxb4 {[%emt 0:27:07]} Nxb4 {[%emt 0:00:06]} 9. Bxf7+ {[%emt 0:00:24]} Kxf7 {[%emt 0:00:05]} 10. Qb3+ {[%emt 0:00:07]} d5 {[%emt 0:00:05]} 11. Qxb4 {[%emt 0:00:05]} Rf8 {[%emt 0:07:10]} 12. O-O {[%emt 0:00:53]} Kg8 {[%emt 0:00:04]} 13. Qb3 {[%emt 0:06:44]} Bg4 {[%emt 0:24:56]} 14. Nbd2 {[%emt 0:01:10]} Bxf3 {[%emt 0:00:16]} 15. Nxf3 {[%emt 0:00:06]} Qd6 {[%emt 0:00:05]} 16. Rfe1 {[%emt 0:01:02]} Rae8 {[%emt 0:07:21]} 17. Re2 {[%emt 0:00:58]} Ng5 {[%emt 0:10:52]} 18. Ne5 {[%emt 0:00:39]} Ne6 {[%emt 0:02:51]} 19. Rd1 {[%emt 0:04:39]} b6 {[%emt 0:05:03]} 20. Qc3 {[%emt 0:01:20]} c5 {[%emt 0:01:36]} 21. dxc5 {[%emt 0:03:38]} bxc5 {[%emt 0:03:48]} 22. Nf3 {[%emt 0:06:36]} Nf4 {[%emt 0:04:40]} 23. Rxe8 {[%emt 0:01:43]} Rxe8 {[%emt 0:00:01]} 24. Qb3 {[%emt 0:05:27]} Qg6 {[%emt 0:15:09]} 25. g3 {[%emt 0:01:20]} c4 {[%emt 0:00:08]} 26. Qb5 {[%emt 0:01:40]} Rf8 {[%emt 0:00:26]} 27. Qd7 {[%emt 0:09:52]} h6 {[%emt 0:07:40]} 28. Nh4 {[%emt 0:02:36]} Qc2 {[%emt 0:00:46]} 29. Rf1 {[%emt 0:00:23]} Ne2+ {[%emt 0:00:21]} 30. Kg2 {[%emt 0:00:09]} d4 {[%emt 0:00:40]} 31. Qe6+ {[%emt 0:03:06]} Kh7 {[%emt 0:00:05]} 32. Qe7 {[%emt 0:01:05]} Rf6 {[%emt 0:02:17]} 33. Re1 {[%emt 0:00:20]} d3 {[%emt 0:01:16]} 34. Qe4+ {[%emt 0:01:37]} Kg8 {[%emt 0:00:05]} 35. Qe8+ {[%emt 0:00:25]} Kh7 {[%emt 0:00:04]} 36. Qe4+ {[%emt 0:00:04]} Kg8 {[%emt 0:00:03]} 37. Qe8+ {[%emt 0:00:05]} Kh7 {[%emt 0:00:03]} 1/2-1/2

[Event "Moscow-ch Men 2020"]
[Site "Moscow"]
[Date "2020.09.17"]
[Round "5.2"]
[White "Stukan, Martin"]
[Black "Galaktionov, Artem"]
[Result "1/2-1/2"]
[ECO "B15"]
[WhiteElo "2325"]
[BlackElo "2319"]
[Annotator "ChessBase"]
[PlyCount "99"]
[EventDate "2020.09.15"]
[EventType "swiss"]
[EventCountry "RUS"]
[TimeControl "5400+30"]

1. e4 {[%emt 0:00:00]} c6 {[%emt 0:12:30]} 2. d4 {[%emt 0:00:00]} d5 {[%emt 0:00:03]} 3. Nc3 {[%emt 0:00:00]} dxe4 {[%emt 0:05:50]} 4. Nxe4 {[%emt 0:00:00]} g6 {[%emt 0:01:02]} 5. Nf3 {[%emt 0:06:27]} Bg7 {[%emt 0:00:30]} 6. Bc4 {[%emt 0:00:50]} Nh6 {[%emt 0:01:01]} 7. h4 {[%emt 0:05:45]} Nd7 {[%emt 0:06:44]} 8. Bg5 {[%emt 0:17:25]} Nb6 {[%emt 0:00:21]} 9. Bb3 {[%emt 0:00:04]} f6 {[%emt 0:13:16]} 10. Bd2 {[%emt 0:05:29]} Nd5 {[%emt 0:01:45]} 11. Qe2 {[%emt 0:23:05]} O-O {[%emt 0:21:13]} 12. Nc5 {[%emt 0:02:11]} Qd6 {[%emt 0:00:19]} 13. c4 {[%emt 0:14:05]} Nf4 {[%emt 0:00:32]} 14. Bxf4 {[%emt 0:11:33]} Qxf4 {[%emt 0:00:10]} 15. Ne6 {[%emt 0:00:14]} Bxe6 {[%emt 0:00:13]} 16. Qxe6+ {[%emt 0:00:01]} Kh8 {[%emt 0:00:06]} 17. O-O {[%emt 0:00:04]} Nf5 {[%emt 0:05:37]} 18. Rfe1 {[%emt 0:00:12]} Nxd4 {[%emt 0:02:48]} 19. Nxd4 {[%emt 0:00:04]} Qxd4 {[%emt 0:00:03]} 20. Qxe7 {[%emt 0:00:37]} Qxh4 {[%emt 0:03:24]} 21. Rad1 {[%emt 0:01:16]} c5 {[%emt 0:06:05]} 22. Rd7 {[%emt 0:01:38]} Qh6 {[%emt 0:05:01]} 23. Qxc5 {[%emt 0:03:06]} b6 {[%emt 0:00:30]} 24. Qe7 {[%emt 0:02:55]} f5 {[%emt 0:00:39]} 25. Re3 {[%emt 0:00:38]} Bf6 {[%emt 0:00:06]} 26. Qd6 {[%emt 0:01:31]} Rad8 {[%emt 0:02:34]} 27. Rxd8 {[%emt 0:01:02]} Bxd8 {[%emt 0:00:06]} 28. Ba4 {[%emt 0:02:37]} Qg7 {[%emt 0:03:31]} 29. Re2 {[%emt 0:00:34]} Bf6 {[%emt 0:01:12]} 30. b3 {[%emt 0:00:08]} Rd8 {[%emt 0:00:16]} 31. Re8+ {[%emt 0:00:03]} Rxe8 {[%emt 0:00:03]} 32. Bxe8 {[%emt 0:00:04]} Be7 {[%emt 0:00:42]} 33. Qe6 {[%emt 0:00:47]} Bc5 {[%emt 0:00:29]} 34. g3 {[%emt 0:01:11]} Qb2 {[%emt 0:00:30]} 35. Qe1 {[%emt 0:00:02]} Kg7 {[%emt 0:00:40]} 36. Bc6 {[%emt 0:00:08]} Kf6 {[%emt 0:01:40]} 37. Bd5 {[%emt 0:01:03]} a5 {[%emt 0:00:39]} 38. Bc6 {[%emt 0:01:36]} h5 {[%emt 0:03:37]} 39. Kf1 {[%emt 0:00:11]} Qd4 {[%emt 0:01:26]} 40. Bd5 {[%emt 0:00:32]} h4 {[%emt 0:00:44]} 41. gxh4 {[%emt 0:00:30]} Qxh4 {[%emt 0:00:08]} 42. Qd2 {[%emt 0:00:40]} g5 {[%emt 0:00:26]} 43. Bg2 {[%emt 0:00:05]} Kg6 {[%emt 0:00:18]} 44. Qe2 {[%emt 0:00:11]} g4 {[%emt 0:00:50]} 45. Qe6+ {[%emt 0:00:21]} Qf6 {[%emt 0:01:11]} 46. Bd5 {[%emt 0:01:03]} Kg5 {[%emt 0:00:11]} 47. Qxf6+ {[%emt 0:00:17]} Kxf6 {[%emt 0:00:01]} 48. a4 {[%emt 0:00:21]} Ke5 {[%emt 0:00:25]} 49. f3 {[%emt 0:00:13]} g3 {[%emt 0:00:27]} 50. Bc6 {[%emt 0:00:10]} 1/2-1/2

[Event "Moscow-ch Men 2020"]
[Site "Moscow"]
[Date "2020.09.17"]
[Round "5.3"]
[White "Gubajdullin, Alexei"]
[Black "Rostovtsev, Dmitry"]
[Result "0-1"]
[ECO "A45"]
[WhiteElo "2344"]
[BlackElo "1737"]
[Annotator "ChessBase"]
[PlyCount "82"]
[EventDate "2020.09.15"]
[EventType "swiss"]
[EventCountry "RUS"]
[TimeControl "5400+30"]

1. d4 {[%emt 0:00:00]} Nf6 {[%emt 0:02:36]} 2. Bf4 {[%emt 0:00:00]} c5 {[%emt 0:02:53]} 3. e3 {[%emt 0:02:07]} Qb6 {[%emt 0:00:29]} 4. b3 {[%emt 0:03:29]} g6 {[%emt 0:00:21]} 5. Nf3 {[%emt 0:03:14]} Bg7 {[%emt 0:00:39]} 6. Be2 {[%emt 0:00:15]} O-O {[%emt 0:00:29]} 7. O-O {[%emt 0:00:53]} Nc6 {[%emt 0:01:54]} 8. Nc3 {[%emt 0:05:18]} d6 {[%emt 0:03:26]} 9. d5 {[%emt 0:16:12]} Qa5 {[%emt 0:02:42]} 10. Na4 {[%emt 0:02:14]} Nb4 {[%emt 0:00:46]} 11. c4 {[%emt 0:00:21]} b5 {[%emt 0:02:34]} 12. cxb5 {[%emt 0:03:03]} Nbxd5 {[%emt 0:01:38]} 13. Nd2 {[%emt 0:04:09]} Nxf4 {[%emt 0:03:06]} 14. exf4 {[%emt 0:00:02]} Bb7 {[%emt 0:02:03]} 15. Nc4 {[%emt 0:01:07]} Qc7 {[%emt 0:00:33]} 16. Rc1 {[%emt 0:04:32]} Nd7 {[%emt 0:03:40]} 17. Bf3 {[%emt 0:01:55]} Rab8 {[%emt 0:01:04]} 18. Re1 {[%emt 0:04:07]} Rfe8 {[%emt 0:00:06]} 19. Bxb7 {[%emt 0:03:38]} Qxb7 {[%emt 0:00:10]} 20. Nc3 {[%emt 0:00:37]} Bxc3 {[%emt 0:02:25]} 21. Rxc3 {[%emt 0:00:13]} Qxb5 {[%emt 0:00:22]} 22. Rce3 {[%emt 0:01:51]} Nb6 {[%emt 0:02:08]} 23. Nxb6 {[%emt 0:08:00]} axb6 {[%emt 0:00:28]} 24. f5 {[%emt 0:06:03]} Qd7 {[%emt 0:00:51]} 25. Rf3 {[%emt 0:05:12]} e5 {[%emt 0:15:32]} 26. f6 {[%emt 0:11:25]} e4 {[%emt 0:00:20]} 27. Rf4 {[%emt 0:00:08]} d5 {[%emt 0:00:43]} 28. Qd2 {[%emt 0:03:20]} Qe6 {[%emt 0:01:12]} 29. Qe3 {[%emt 0:04:24]} Qe5 {[%emt 0:01:49]} 30. f3 {[%emt 0:01:33]} Re6 {[%emt 0:03:48]} 31. fxe4 {[%emt 0:00:13]} Rbe8 {[%emt 0:00:04]} 32. Ref1 {[%emt 0:01:30]} dxe4 {[%emt 0:00:46]} 33. Kh1 {[%emt 0:01:29]} Rd8 {[%emt 0:01:22]} 34. h3 {[%emt 0:02:43]} Rd3 {[%emt 0:01:22]} 35. Qe2 {[%emt 0:00:18]} Qd5 {[%emt 0:01:29]} 36. Qg4 {[%emt 0:01:50]} e3 {[%emt 0:00:39]} 37. Re1 {[%emt 0:00:17]} Rd2 {[%emt 0:01:20]} 38. Rf3 {[%emt 0:00:40]} Rd1 {[%emt 0:00:43]} 39. Rxd1 {[%emt 0:00:23]} Qxd1+ {[%emt 0:00:06]} 40. Kh2 {[%emt 0:00:03]} Qd6+ {[%emt 0:00:20]} 41. Rg3 {[%emt 0:01:08]} e2 {[%emt 0:00:15]} 0-1

[Event "Moscow-ch Men 2020"]
[Site "Moscow"]
[Date "2020.09.17"]
[Round "5.7"]
[White "Tunik, Sergey"]
[Black "Uskov, Artem"]
[Result "1/2-1/2"]
[ECO "D36"]
[WhiteElo "2160"]
[BlackElo "2164"]
[Annotator "ChessBase"]
[PlyCount "94"]
[EventDate "2020.09.15"]
[EventType "swiss"]
[EventCountry "RUS"]
[TimeControl "5400+30"]

1. d4 {[%emt 0:27:53]} d5 {[%emt 0:00:00]} 2. c4 {[%emt 0:00:09]} e6 {[%emt 0:00:04]} 3. Nc3 {[%emt 0:00:07]} Nf6 {[%emt 0:00:26]} 4. Bg5 {[%emt 0:00:09]} Be7 {[%emt 0:00:10]} 5. e3 {[%emt 0:00:08]} O-O {[%emt 0:00:28]} 6. cxd5 {[%emt 0:00:06]} exd5 {[%emt 0:00:05]} 7. Bd3 {[%emt 0:00:06]} c6 {[%emt 0:00:14]} 8. Qc2 {[%emt 0:00:12]} Nbd7 {[%emt 0:00:11]} 9. Nf3 {[%emt 0:00:12]} Re8 {[%emt 0:00:24]} 10. h3 {[%emt 0:00:08]} Nf8 {[%emt 0:02:35]} 11. O-O-O {[%emt 0:00:09]} Ne4 {[%emt 0:00:48]} 12. Bxe7 {[%emt 0:03:07]} Qxe7 {[%emt 0:00:32]} 13. Bxe4 {[%emt 0:00:25]} dxe4 {[%emt 0:00:08]} 14. Nd2 {[%emt 0:01:08]} f5 {[%emt 0:00:52]} 15. Kb1 {[%emt 0:07:57]} Be6 {[%emt 0:02:44]} 16. Ne2 {[%emt 0:06:01]} Ng6 {[%emt 0:18:07]} 17. Rhg1 {[%emt 0:03:36]} Qf7 {[%emt 0:04:00]} 18. a3 {[%emt 0:02:02]} Bd5 {[%emt 0:01:49]} 19. Rdf1 {[%emt 0:04:57]} f4 {[%emt 0:05:32]} 20. h4 {[%emt 0:04:01]} f3 {[%emt 0:04:27]} 21. gxf3 {[%emt 0:10:45]} exf3 {[%emt 0:00:28]} 22. Nc3 {[%emt 0:00:18]} Nxh4 {[%emt 0:07:30]} 23. Rh1 {[%emt 0:00:42]} Ng6 {[%emt 0:14:32]} 24. Rh3 {[%emt 0:02:13]} Be6 {[%emt 0:04:47]} 25. Rxf3 {[%emt 0:00:34]} Qd7 {[%emt 0:01:30]} 26. Rg3 {[%emt 0:03:28]} Rf8 {[%emt 0:01:59]} 27. Nde4 {[%emt 0:02:57]} Bf5 {[%emt 0:06:30]} 28. f3 {[%emt 0:00:49]} Rae8 {[%emt 0:01:05]} 29. Ka1 {[%emt 0:02:39]} Nh4 {[%emt 0:07:14]} 30. Rh1 {[%emt 0:04:28]} Qe7 {[%emt 0:00:38]} 31. Qb3+ {[%emt 0:01:28]} Be6 {[%emt 0:00:22]} 32. d5 {[%emt 0:03:09]} cxd5 {[%emt 0:00:37]} 33. Nxd5 {[%emt 0:00:06]} Qf7 {[%emt 0:02:13]} 34. Ndf6+ {[%emt 0:04:39]} Kh8 {[%emt 0:00:30]} 35. Rxh4 {[%emt 0:00:11]} gxf6 {[%emt 0:00:24]} 36. Qd1 {[%emt 0:02:20]} Rd8 {[%emt 0:00:41]} 37. Qh1 {[%emt 0:00:54]} Bf5 {[%emt 0:01:31]} 38. Rg1 {[%emt 0:00:22]} Rd3 {[%emt 0:00:47]} 39. Rf4 {[%emt 0:00:35]} Bxe4 {[%emt 0:01:06]} 40. Rxe4 {[%emt 0:00:10]} Rfd8 {[%emt 0:00:30]} 41. Rc1 {[%emt 0:00:43]} a5 {[%emt 0:01:25]} 42. Qe1 {[%emt 0:01:31]} b6 {[%emt 0:01:20]} 43. Rd4 {[%emt 0:00:36]} R3xd4 {[%emt 0:05:35]} 44. exd4 {[%emt 0:00:13]} Qd7 {[%emt 0:00:32]} 45. Rd1 {[%emt 0:01:05]} Re8 {[%emt 0:00:03]} 46. Qh4 {[%emt 0:00:30]} Qf5 {[%emt 0:00:05]} 47. d5 {[%emt 0:00:52]} Qxf3 {[%emt 0:02:09]} 1/2-1/2

[Event "Moscow-ch Men 2020"]
[Site "Moscow"]
[Date "2020.09.19"]
[Round "7.2"]
[White "Stukan, Martin"]
[Black "Apryshko, Gleb"]
[Result "0-1"]
[ECO "B28"]
[WhiteElo "2325"]
[BlackElo "2388"]
[Annotator "ChessBase"]
[PlyCount "88"]
[EventDate "2020.09.15"]
[EventType "swiss"]
[EventCountry "RUS"]
[SourceTitle "playchess.com"]
[Source "ChessBase"]
[SourceQuality "1"]
[TimeControl "5400+30"]

1. e4 {[%emt 0:00:00]} c5 {[%emt 0:00:00]} 2. Nf3 {[%emt 0:00:00]} a6 {[%emt 0:00:00]} 3. c3 {[%emt 0:00:56]} g6 {[%emt 0:00:11]} 4. d4 {[%emt 0:00:43]} cxd4 {[%emt 0:00:02]} 5. cxd4 {[%emt 0:00:03]} d5 {[%emt 0:00:16]} 6. e5 {[%emt 0:04:09]} Bg4 {[%emt 0:00:08]} 7. Qb3 {[%emt 0:02:54]} Ra7 {[%emt 0:18:34]} 8. Be2 {[%emt 0:26:42]} Nc6 {[%emt 0:04:51]} 9. Nc3 {[%emt 0:00:19]} e6 {[%emt 0:02:09]} 10. Bg5 {[%emt 0:16:32]} Qa5 {[%emt 0:00:17]} 11. Rd1 {[%emt 0:03:56]} Nge7 {[%emt 0:04:46]} 12. Bf6 {[%emt 0:01:36]} Rg8 {[%emt 0:00:02]} 13. Ng1 {[%emt 0:00:53]} Bxe2 {[%emt 0:02:41]} 14. Ngxe2 {[%emt 0:00:05]} Nc8 {[%emt 0:04:28]} 15. O-O {[%emt 0:11:11]} Nb6 {[%emt 0:01:32]} 16. Nb1 {[%emt 0:01:59]} Qb5 {[%emt 0:08:19]} 17. Qf3 {[%emt 0:06:44]} Qxb2 {[%emt 0:24:18]} 18. Nbc3 {[%emt 0:00:03]} Qb4 {[%emt 0:00:17]} 19. Qh3 {[%emt 0:04:37]} Bg7 {[%emt 0:15:51]} 20. Rb1 {[%emt 0:03:42]} Qa5 {[%emt 0:00:01]} 21. Qxh7 {[%emt 0:00:11]} Kf8 {[%emt 0:00:10]} 22. Bxg7+ {[%emt 0:01:48]} Rxg7 {[%emt 0:00:01]} 23. Qh8+ {[%emt 0:00:05]} Rg8 {[%emt 0:00:01]} 24. Qf6 {[%emt 0:00:58]} Nd7 {[%emt 0:00:46]} 25. Qf3 {[%emt 0:01:14]} Ke7 {[%emt 0:01:22]} 26. Qe3 {[%emt 0:08:17]} Kd8 {[%emt 0:01:02]} 27. Qf4 {[%emt 0:00:28]} Ke8 {[%emt 0:01:36]} 28. Rfc1 {[%emt 0:00:15]} Ne7 {[%emt 0:01:23]} 29. Ng3 {[%emt 0:00:58]} Kf8 {[%emt 0:04:53]} 30. h4 {[%emt 0:00:19]} Rh8 {[%emt 0:01:20]} 31. Qg5 {[%emt 0:00:48]} Nc6 {[%emt 0:00:05]} 32. Qg4 {[%emt 0:00:47]} Qd8 {[%emt 0:00:09]} 33. h5 {[%emt 0:00:52]} gxh5 {[%emt 0:00:00]} 34. Nxh5 {[%emt 0:00:13]} Rg8 {[%emt 0:00:00]} 35. Qd1 {[%emt 0:00:29]} Qh4 {[%emt 0:00:10]} 36. Nf6 {[%emt 0:01:42]} Nxf6 {[%emt 0:00:13]} 37. exf6 {[%emt 0:00:01]} Rh8 {[%emt 0:00:43]} 38. Kf1 {[%emt 0:00:00]} Qxf6 {[%emt 0:00:30]} 39. Ne2 {[%emt 0:00:55]} Rh1+ {[%emt 0:00:55]} 40. Ng1 {[%emt 0:00:01]} Qxd4 {[%emt 0:00:23]} 41. Qf3 {[%emt 0:00:50]} Ne5 {[%emt 0:01:47]} 42. Rc8+ {[%emt 0:01:21]} Kg7 {[%emt 0:00:00]} 43. Qg3+ {[%emt 0:00:43]} Ng6 {[%emt 0:00:01]} 44. Rc7 {[%emt 0:00:43]} b5 {[%emt 0:00:11]} 0-1

[Event "Moscow-ch Men 2020"]
[Site "Moscow"]
[Date "2020.09.19"]
[Round "7.3"]
[White "Gubajdullin, Alexei"]
[Black "Teiitbaev, Aktilek"]
[Result "1-0"]
[ECO "A48"]
[WhiteElo "2344"]
[BlackElo "2106"]
[Annotator "ChessBase"]
[PlyCount "85"]
[EventDate "2020.09.15"]
[EventType "swiss"]
[EventCountry "RUS"]
[SourceTitle "playchess.com"]
[Source "ChessBase"]
[SourceQuality "1"]
[TimeControl "5400+30"]

1. d4 {[%emt 0:00:00]} Nf6 {[%emt 0:00:00]} 2. Nf3 {[%emt 0:00:09]} g6 {[%emt 0:00:00]} 3. Bf4 {[%emt 0:00:08]} Bg7 {[%emt 0:00:00]} 4. e3 {[%emt 0:00:05]} d6 {[%emt 0:00:00]} 5. Be2 {[%emt 0:00:03]} O-O {[%emt 0:00:29]} 6. O-O {[%emt 0:00:05]} b6 {[%emt 0:00:08]} 7. h3 {[%emt 0:01:02]} Bb7 {[%emt 0:00:13]} 8. a4 {[%emt 0:00:08]} a5 {[%emt 0:00:41]} 9. Nc3 {[%emt 0:04:04]} Nbd7 {[%emt 0:01:03]} 10. Bh2 {[%emt 0:00:12]} Re8 {[%emt 0:01:00]} 11. Nb5 {[%emt 0:03:22]} Ne4 {[%emt 0:04:23]} 12. c3 {[%emt 0:04:57]} Rc8 {[%emt 0:09:02]} 13. Qb3 {[%emt 0:05:26]} e6 {[%emt 0:00:13]} 14. Rfd1 {[%emt 0:03:30]} Qe7 {[%emt 0:00:42]} 15. Na7 {[%emt 0:07:35]} Ra8 {[%emt 0:00:40]} 16. Nb5 {[%emt 0:00:04]} Rac8 {[%emt 0:00:04]} 17. Nd2 {[%emt 0:06:56]} Ndf6 {[%emt 0:07:35]} 18. Nc4 {[%emt 0:00:44]} Bh6 {[%emt 0:02:49]} 19. Bf3 {[%emt 0:13:41]} Bd5 {[%emt 0:03:21]} 20. Nba3 {[%emt 0:02:10]} Ng5 {[%emt 0:05:55]} 21. Bxd5 {[%emt 0:16:29]} exd5 {[%emt 0:03:28]} 22. Nd2 {[%emt 0:00:03]} Nge4 {[%emt 0:05:31]} 23. Qc2 {[%emt 0:01:42]} Nxd2 24. Rxd2 {[%emt 0:00:16]} Ne4 {[%emt 0:15:51]} 25. Re2 {[%emt 0:00:21]} Qh4 {[%emt 0:01:02]} 26. Rae1 {[%emt 0:02:34]} Re7 {[%emt 0:04:16]} 27. Qb3 {[%emt 0:00:49]} Nxf2 {[%emt 0:03:02]} 28. Rxf2 {[%emt 0:01:20]} Bxe3 {[%emt 0:00:29]} 29. Rxe3 {[%emt 0:01:00]} Rxe3 {[%emt 0:00:07]} 30. Nc2 {[%emt 0:01:05]} Re7 {[%emt 0:03:37]} 31. Qxd5 {[%emt 0:00:50]} Rce8 {[%emt 0:00:31]} 32. Qf3 {[%emt 0:01:23]} Qg5 {[%emt 0:01:02]} 33. Bf4 {[%emt 0:00:38]} Qf5 {[%emt 0:01:16]} 34. Ne3 {[%emt 0:01:03]} Qe4 {[%emt 0:02:49]} 35. Nd5 {[%emt 0:00:53]} Qxf3 {[%emt 0:02:03]} 36. Nxe7+ {[%emt 0:00:06]} Rxe7 {[%emt 0:00:04]} 37. Rxf3 {[%emt 0:01:25]} Re1+ {[%emt 0:00:58]} 38. Rf1 {[%emt 0:00:16]} Re2 {[%emt 0:00:04]} 39. Rf2 {[%emt 0:00:13]} Re1+ {[%emt 0:00:04]} 40. Kh2 {[%emt 0:00:11]} f6 {[%emt 0:00:16]} 41. Bh6 {[%emt 0:01:10]} Kf7 {[%emt 0:00:14]} 42. Bg5 {[%emt 0:00:06]} f5 {[%emt 0:00:12]} 43. Bd8 {[%emt 0:00:10]} 1-0